fUST/lending_fUST_20241012
["ID","MTS","AMOUNT","RATE_DAILY","PERIOD"]
[340150002,1728685762404,-499.8,0.00056094,30]
[340150003,1728685762428,-1007.21964997,0.00056104,12]
[340150004,1728685762452,-491.0000006,0.00056164,120]
[340150005,1728685762476,-300.0,0.000562,31]
[340150006,1728685762498,-1000.0,0.00056226,2]
[340150007,1728685762519,-1000.67170863,0.00056226,15]
[340150008,1728685762619,-249.2004,0.00056226,15]
[340150009,1728685762639,-1000.0,0.00056226,15]
[340150010,1728685762661,-815.84027575,0.0005623,15]
[340150011,1728685762681,-1000.0,0.0005623,7]
[340150012,1728685762703,-2000.0,0.00056438,120]
[340150013,1728685762725,-172.0,0.00056484,120]
[340150014,1728685762750,-2500.0,0.00056986,120]
[340150015,1728685762771,-3000.0,0.00057534,120]
[340150016,1728685762792,-348.091158,0.000577,32]
[340150017,1728685762815,-32213.2739873,0.0005779,9]
[340150018,1728685762838,-6331.45016821,0.0005779,9]
[340150019,1728685762860,-24128.67953483,0.000578,20]
[340150020,1728685762882,-176.47274514,0.00058075,2]
[340150021,1728685762904,-3500.0,0.00058082,120]
[340150022,1728685762926,-1461.05558458,0.00058229,15]
[340150023,1728685762947,-1500.0,0.00058233,7]
[340150024,1728685762969,-1000.0,0.00058491,120]
[340150025,1728685763030,11548.06506619,0.00043563,120]
[340150026,1728685763074,-13312.94735018,0.00058498,120]
[340150027,1728685763098,-3195.42123208,0.0005863,120]
[340150028,1728685763121,-400.0,0.00059236,2]
[340150029,1728685763143,-348.097381,0.00059236,2]
[340150030,1728685763163,-190.87059088,0.00059391,2]
[340150031,1728685763192,305.1580596,0.00037457,120]
[340150032,1728685763221,-145.41782027,0.00059391,2]
[340150033,1728685763244,-500.0,0.00059789,2]
[340150034,1728685763267,-188.00524576,0.0006,12]
[340150035,1728685763289,-2000.0,0.00060574,7]
[340150036,1728685763313,-1313.2815655,0.00060657,120]
[340150037,1728685763338,-673.58631786,0.00061007,28]
[340150038,1728685763368,11548.06506619,0.00052225,120]
[340150039,1728685764035,201.98,0.00056976,30]
[340150040,1728685770139,104203.5399512,0.00055,120]
[340150041,1728685770160,24045.4700488,0.00055,120]
[340150043,1728685783222,38606.54199898,0.00055,120]
[340150045,1728685803106,5000.0,0.000425,60]
[340150084,1728685831898,-2202.7369235,0.00040907,7]
[340150085,1728685831908,-600.0,0.000528,2]
[340150086,1728685831917,-500.0,0.00054794,120]
[340150087,1728685831928,-500.0,0.00054794,120]
[340150088,1728685831939,-5168.9,0.00054989,10]
[340150089,1728685831949,-4307.41,0.00054989,10]
[340150090,1728685831959,-841.62,0.0005499,30]
[340150091,1728685831968,-7443.21,0.0005499,10]
[340150092,1728685831978,-6202.68,0.0005499,10]
[340150093,1728685831988,-408.4,0.0005499,30]
[340150094,1728685831999,-1117.7486565,0.00054999,120]
[340150095,1728685832009,-8824.54418238,0.00054999,30]
[340150096,1728685832022,-2632.88887826,0.00054999,30]
[340150102,1728685839093,-500.0,0.00054794,120]
[340150103,1728685839102,-3589.51,0.00054989,10]
[340150104,1728685839112,-500.0,0.00054998,120]
[340150105,1728685839123,-500.0,0.00054998,120]
[340150106,1728685839132,-584.54686845,0.00054998,120]
[340150107,1728685839142,-500.0,0.00054998,120]
[340150108,1728685839152,-500.0,0.00054998,120]
[340150109,1728685839161,-500.0,0.00054998,120]
[340150110,1728685839170,-500.0,0.00054998,120]
[340150111,1728685839180,-195.66854106,0.00054998,120]
[340150112,1728685839192,-372.98191411,0.00054998,120]
[340150113,1728685839205,-132714.40713936,0.00054999,30]
[340150114,1728685839218,-227.15710427,0.00054999,120]
[340150115,1728685839228,-500000.0,0.00055,120]
[340150116,1728685839237,-4333.89,0.00055595,120]
[340150117,1728685839247,-150.0,0.00058242,120]
[340150118,1728685839259,-169.40087702,0.00060787,2]
[340150119,1728685839271,-11548.06506619,0.00060888,120]
[340150120,1728685839282,-3580.26814928,0.00061007,28]
[340150121,1728685839293,-150.0,0.00061242,120]
[340150122,1728685839304,-172.0,0.00061619,120]
[340150123,1728685839313,-154.37351867,0.00062312,120]
[340150124,1728685839323,-800.0,0.00062459,120]
[340150125,1728685839333,-201.612004,0.00062713,30]
[340150126,1728685839342,-2000.0,0.00063165,7]
[340150127,1728685839352,-1000.0,0.00063495,120]
[340150128,1728685839361,-2000.0,0.000637,120]
[340150129,1728685839371,-1511.86873788,0.000639,120]
[340150130,1728685839380,-201.0,0.00064,120]
[340150131,1728685839391,-22233.2,0.00064,120]
[340150132,1728685839400,-165.0,0.00064,120]
[340150133,1728685839410,-151.0,0.00064,120]
[340150134,1728685839420,-400.0,0.00064095,2]
[340150135,1728685839429,-348.097381,0.00064095,2]
[340150136,1728685839440,-150.0,0.00064242,120]
[340150137,1728685839450,-6828.59293895,0.00064245,2]
[340150138,1728685839459,-36504.93416824,0.00064249,84]
[340150139,1728685839469,-176.47274514,0.00064249,2]
[340150140,1728685839479,-168797.18888064,0.00064249,2]
[340150145,1728685840008,-124307.13770543,0.00064249,2]
[340150177,1728685845990,-515.91359152,0.00054794,120]
[340150180,1728685846001,-109.78640848,0.00054794,120]
[340150186,1728685846168,-163.96037268,0.00054794,120]
[340150187,1728685846942,24900.0,0.00039737,2]
[340150188,1728685847263,163.0,0.00047,90]
[340150189,1728685848175,163.0,0.00048904,90]
[340150190,1728685853180,250.0,0.00047132,2]
[340150191,1728685853402,250.0,0.00047261,2]
[340150192,1728685853646,250.0,0.0004739,2]
[340150193,1728685854064,250.0,0.0004752,2]
[340150194,1728685854306,250.0,0.00047649,2]
[340150195,1728685854539,250.0,0.00047778,2]
[340150196,1728685854770,250.0,0.00047907,2]
[340150197,1728685855007,250.0,0.00048037,2]
[340150198,1728685855223,250.0,0.00048166,2]
[340150199,1728685855473,250.0,0.00048295,2]
[340150200,1728685855703,250.0,0.00048424,2]
[340150201,1728685855911,250.0,0.00048554,2]
[340150202,1728685856133,250.0,0.00048683,2]
[340150203,1728685856341,250.0,0.00048812,2]
[340150204,1728685856536,250.0,0.00048942,2]
[340150205,1728685856773,250.0,0.00049071,2]
[340150206,1728685857089,250.0,0.000492,2]
[340150207,1728685869064,20283.15424239,0.00049229,2]
[340150211,1728685936580,947.93908908,0.0003701,2]
[340150212,1728685945375,564.6993111,0.0003701,2]
[340150213,1728685946510,527.78697394,0.0003701,2]
[340150216,1728686110257,195.978056,0.00026986,2]
[340150219,1728686735107,-703.497936,0.00033834,2]
[340150220,1728686735135,-2118.698413,0.00033899,2]
[340150221,1728686735168,-660.0,0.00033924,2]
[340150222,1728686735194,-158.15082827,0.00033932,2]
[340150223,1728686735227,-400.0,0.00034032,2]
[340150224,1728686735255,-400.0,0.00034032,2]
[340150225,1728686735280,-212.0,0.00034033,2]
[340150226,1728686735307,-24900.0,0.00034033,2]
[340150227,1728686735331,-2118.698413,0.00034584,2]
[340150228,1728686735358,-832.96937402,0.00034584,7]
[340150229,1728686735383,-2118.698413,0.00035269,2]
[340150230,1728686735409,-157.531855,0.00035395,2]
[340150231,1728686735435,-157.531855,0.0003541,2]
[340150232,1728686735461,-157.531855,0.00035424,2]
[340150233,1728686735485,-157.531855,0.00035439,2]
[340150234,1728686735508,-157.531855,0.00035454,2]
[340150235,1728686735533,-157.531855,0.00035469,2]
[340150236,1728686735557,-157.531855,0.00035483,2]
[340150237,1728686735583,-157.531855,0.00035498,2]
[340150238,1728686735608,-157.531855,0.00035513,2]
[340150239,1728686735634,-157.531855,0.00035528,2]
[340150240,1728686735662,-157.531855,0.00035542,2]
[340150241,1728686735689,-157.531855,0.00035557,2]
[340150242,1728686735716,-157.531855,0.00035572,2]
[340150243,1728686735745,-756.5731717,0.00035617,2]
[340150244,1728686735771,-250.0,0.00035728,2]
[340150245,1728686735796,-177.483924,0.0003574,2]
[340150246,1728686735818,-30562.5185681,0.00035792,2]
[340150247,1728686735844,-500.0,0.00035879,15]
[340150248,1728686735872,-500.0,0.00035879,15]
[340150249,1728686735906,-500.0,0.00035879,15]
[340150250,1728686735934,-242.02247325,0.00035879,15]
[340150251,1728686735959,-500.0,0.00035879,15]
[340150252,1728686735983,-648.51839702,0.00035879,15]
[340150253,1728686736009,-500.0,0.00035879,15]
[340150254,1728686736036,-500.0,0.00035879,15]
[340150255,1728686736059,-821.1584924,0.0003588,2]
[340150256,1728686736085,-854.4038823,0.00035939,2]
[340150257,1728686736109,-190.955657,0.00036119,2]
[340150258,1728686736134,-250.0,0.00036208,2]
[340150259,1728686736163,-250.0,0.00036307,2]
[340150260,1728686736189,-250.0,0.00036406,2]
[340150261,1728686736213,-250.0,0.00036506,2]
[340150262,1728686736237,-560.0,0.00036526,2]
[340150263,1728686736388,-763.52437568,0.00036604,2]
[340150264,1728686736411,-250.0,0.00036605,2]
[340150265,1728686736433,-250.0,0.00036704,2]
[340150266,1728686736456,-250.0,0.00036803,2]
[340150267,1728686736478,-250.0,0.00036903,2]
[340150268,1728686736500,-250.0,0.00037002,2]
[340150269,1728686736520,-853.84,0.0003701,2]
[340150270,1728686736542,-535.41046731,0.0003701,2]
[340150271,1728686736563,-212.0,0.00037033,2]
[340150272,1728686736583,-212.0,0.00037033,2]
[340150273,1728686736604,-250.0,0.00037101,2]
[340150274,1728686736625,-14121.76481863,0.000372,103]
[340150275,1728686737656,195.978056,0.00026986,2]
[340150276,1728686756110,-5092.51428437,0.000372,103]
[340150277,1728686756134,-250.0,0.00037201,2]
[340150278,1728686756156,-250.0,0.000373,2]
[340150279,1728686756178,-250.0,0.00037399,2]
[340150280,1728686756199,-500.0,0.00037415,5]
[340150281,1728686756220,-560.0,0.00037435,2]
[340150282,1728686756240,-213.0,0.00037489,2]
[340150283,1728686756261,-250.0,0.00037499,2]
[340150284,1728686756283,-250.0,0.00037598,2]
[340150285,1728686756304,-338.61033564,0.00037664,5]
[340150286,1728686756325,-250.0,0.00037697,2]
[340150287,1728686756347,-105.30446932,0.00037797,2]
[340150288,1728686826111,-194.6982611,0.00036326,2]
[340150289,1728686826134,-1000.0,0.00037378,7]
[340150290,1728686826159,-144.69553068,0.00037797,2]
[340150291,1728686826181,-250.0,0.00037896,2]
[340150292,1728686826203,-250.0,0.00037995,2]
[340150293,1728686826225,-250.0,0.00038095,2]
[340150294,1728686826249,-400.0,0.00038355,30]
[340150295,1728686826271,-400.0,0.00038355,5]
[340150296,1728686826295,-4333.89,0.00038356,2]
[340150297,1728686826316,-329.16,0.00038747,52]
[340150298,1728686826338,-1000.0,0.00038785,5]
[340150299,1728686826361,-5663.84350292,0.00039402,2]
[340150300,1728686826382,-192.39,0.00039492,3]
[340150301,1728686826404,-577.21,0.00039492,3]
[340150302,1728686826425,-2232.77,0.00039492,10]
[340150303,1728686826446,-3823.32,0.00039492,10]
[340150304,1728686826469,-3186.1,0.00039492,10]
[340150305,1728686826491,-349.83537745,0.00039501,15]
[340150306,1728686826512,-427.0,0.00039502,2]
[340150307,1728686826537,-6708.48934969,0.00039502,5]
[340150308,1728686838147,-2655.08,0.00039492,10]
[340150309,1728686838173,-25260.960673,0.00039502,5]
[340150310,1728686838243,-20148.80514761,0.00039502,5]
[340150311,1728686838266,-23285.18988584,0.00039502,5]
[340150312,1728686841117,-472.554,0.00039502,5]
[340150313,1728686852102,-320.46128365,0.00039502,5]
[340150314,1728686854298,-3354.23800607,0.00039502,5]
[340150315,1728686945160,-400.0,0.00034466,2]
[340150316,1728686945189,-400.0,0.00034466,2]
[340150317,1728686945211,-34511.6545504,0.00034467,2]
[340150318,1728686945234,-560.0,0.00036976,2]
[340150319,1728686945257,-23503.01354858,0.000372,103]
[340150320,1728686945279,-560.0,0.00037913,2]
[340150321,1728686945305,-783.0,0.00039668,5]
[340150322,1728686945439,-501.38075388,0.00040667,5]
[340150323,1728686945467,-500.0,0.00040667,5]
[340150324,1728686945491,-774.82285638,0.00040892,14]
[340150325,1728686964173,-3000.0,0.00040076,2]
[340150326,1728686964200,-170.944197,0.00040076,2]
[340150327,1728686964224,-170.944197,0.00040096,2]
[340150328,1728686964249,-170.944197,0.00040116,2]
[340150329,1728686964273,-170.944197,0.00040136,2]
[340150330,1728686964296,-170.944197,0.00040156,2]
[340150331,1728686964319,-170.944197,0.00040176,2]
[340150332,1728686964345,-170.944197,0.00040196,2]
[340150333,1728686964370,-170.944197,0.00040216,2]
[340150334,1728686964396,-170.944197,0.00040236,2]
[340150335,1728686964418,-170.944197,0.00040256,2]
[340150336,1728686964440,-170.944197,0.00040276,2]
[340150337,1728686964463,-3036.94032534,0.00040892,14]
[340150338,1728686964493,-154.74,0.000412,31]
[340150339,1728686964518,-154.74,0.000412,31]
[340150340,1728686964543,-154.74,0.000412,31]
[340150341,1728686964567,-154.74,0.000412,31]
[340150342,1728686964589,-500.0,0.00041567,10]
[340150343,1728686964611,-610.81950052,0.00041604,2]
[340150344,1728686964633,-783.0,0.00041704,30]
[340150345,1728686964653,-500.0,0.00042147,5]
[340150346,1728686964674,-610.81950051,0.00042179,2]
[340150347,1728686964698,-5000.0,0.000425,60]
[340150348,1728686964721,-500.0,0.000425,2]
[340150349,1728686964745,-500.0,0.00042511,10]
[340150350,1728686964770,-1097.0,0.00042557,5]
[340150351,1728686964792,-610.81950051,0.00042755,2]
[340150352,1728686964815,-1145.48145312,0.00043,113]
[340150353,1728686965141,-1854.51854688,0.00043,113]
[340150354,1728686965164,-610.81950051,0.0004333,2]
[340150355,1728686965186,-1000.0,0.00043517,5]
[340150356,1728686965207,-610.81950051,0.00043905,2]
[340150357,1728686965230,-500.0,0.00043983,10]
[340150358,1728686965252,-150.0,0.00043983,10]
[340150359,1728686965273,-500.0,0.00043983,7]
[340150360,1728686965294,-384.78,0.00043985,30]
[340150361,1728686965318,-2212.57,0.00043985,10]
[340150362,1728686965339,-500.0,0.00043994,120]
[340150363,1728686965361,-500.0,0.00043994,120]
[340150364,1728686965384,-500.0,0.00043994,120]
[340150365,1728686965407,-171.77491307,0.00043994,120]
[340150366,1728686965427,-195.66854106,0.00043994,120]
[340150367,1728686965450,-54515.0014703,0.00043995,6]
[340150368,1728686965474,-5920.74279637,0.00043995,6]
[340150369,1728686965496,-1843.81,0.00043995,10]
[340150370,1728686965519,-1536.5,0.00043995,10]
[340150371,1728686965539,-182.37045697,0.00044004,31]
[340150372,1728686965562,-445.66846269,0.00044004,120]
[340150373,1728686965585,-505.32605913,0.00044004,120]
[340150374,1728686965606,-338.01557766,0.00044004,120]
[340150375,1728686965630,-322.54473892,0.00044004,120]
[340150376,1728686965652,-326.61346123,0.00044004,120]
[340150377,1728686965674,-285.4473631,0.00044004,120]
[340150378,1728686965698,-78277.8785932,0.00044005,6]
[340150379,1728686974121,-4955.86306509,0.00043895,28]
[340150380,1728686974147,-24519.16279491,0.00044005,6]
[340150452,1728687032234,-550.0,0.00040799,30]
[340150453,1728687032243,-550.0,0.00040799,5]
[340150454,1728687032252,-500.0,0.000408,7]
[340150455,1728687032262,-500.0,0.000408,7]
[340150456,1728687032271,-648.94169454,0.000408,7]
[340150457,1728687032280,-244.45746213,0.000425,10]
[340150458,1728687032290,-770.0,0.00043483,5]
[340150459,1728687032303,-6232.96155289,0.00044005,6]
[340150460,1728687032312,-11841.4855927,0.00044005,6]
[340150461,1728687032322,-196.0,0.00044005,30]
[340150462,1728687032333,-1000.0,0.00044005,30]
[340150463,1728687032342,-163.443487,0.00044658,2]
[340150464,1728687032351,-261.073036,0.00044658,2]
[340150465,1728687032361,-770.0,0.00044879,30]
[340150466,1728687032371,-23503.01354858,0.00045045,120]
[340150467,1728687032380,-697.48646115,0.00045353,10]
[340150468,1728687032389,-500.0,0.00045353,7]
[340150469,1728687032400,-1077.0,0.00046343,5]
[340150470,1728687032409,-172.0,0.00047,90]
[340150471,1728687032419,-154.74,0.00047,42]
[340150472,1728687032428,-154.74,0.00047,42]
[340150473,1728687032437,-154.74,0.00047,42]
[340150474,1728687032446,-154.74,0.00047,42]
[340150475,1728687032455,-154.74,0.00047,42]
[340150476,1728687032465,-154.74,0.00047,42]
[340150477,1728687032475,-154.74,0.00047,42]
[340150478,1728687032484,-154.74,0.00047,42]
[340150479,1728687032494,-4955.86306504,0.0004756,28]
[340150480,1728687032503,-642.59142389,0.00047828,120]
[340150481,1728687032512,-387.0,0.00049367,30]
[340150482,1728687032522,-528.0,0.00049391,5]
[340150483,1728687032532,-261.073036,0.00049517,2]
[340150484,1728687032541,-163.443487,0.00050428,2]
[340150485,1728687032551,-703.497936,0.00050751,2]
[340150486,1728687032561,-4955.86306504,0.00051225,28]
[340150487,1728687032571,-638.07,0.00052503,10]
[340150488,1728687032580,-465.24032722,0.00052513,120]
[340150489,1728687032590,-537.74924113,0.00052513,120]
[340150490,1728687032599,-553.54139556,0.00052513,120]
[340150491,1728687032608,-242.75689545,0.00052513,31]
[340150492,1728687032617,-162.92412013,0.00052513,120]
[340150493,1728687032627,-163545.004411,0.00052514,8]
[340150494,1728687032637,-17762.2283891,0.00052514,8]
[340150495,1728687032646,-154.74,0.000529,51]
[340150496,1728687032656,-154.74,0.000529,51]
[340150497,1728687032665,-154.74,0.000529,51]
[340150498,1728687032675,-154.74,0.000529,51]
[340150499,1728687032684,-154.74,0.000529,51]
[340150500,1728687032694,-154.74,0.000529,51]
[340150501,1728687032703,-154.74,0.000529,51]
[340150502,1728687032713,-154.74,0.000529,51]
[340150503,1728687032722,-4057.62748611,0.00053213,120]
[340150504,1728687032734,-19445.38606247,0.00053213,120]
[340150505,1728687032744,-330.7379657,0.00053973,30]
[340150506,1728687032753,-209.9542747,0.00053973,30]
[340150507,1728687032763,-209.9542747,0.00053973,30]
[340150508,1728687032772,-209.9542747,0.00053973,30]
[340150509,1728687032782,-209.9542747,0.00053973,30]
[340150510,1728687032791,-209.9542747,0.00053973,30]
[340150511,1728687032800,-209.9542747,0.00053973,30]
[340150512,1728687032810,-209.9542747,0.00053973,30]
[340150513,1728687032820,-261.073036,0.00054376,2]
[340150514,1728687032830,-53049.94325587,0.00054673,30]
[340150515,1728687033028,-4825.99944816,0.00054673,30]
[340150516,1728687033041,-1014.67046642,0.00054673,30]
[340150528,1728687038342,-188.40761567,0.00052513,120]
[340150529,1728687038361,-73823.79396955,0.00054673,30]
[340150530,1728687038372,-5920.74279637,0.00054674,8]
[340150531,1728687038381,-1174.08,0.00054674,10]
[340150532,1728687038391,-40427.84902349,0.00054684,120]
[340150533,1728687038402,-158.015801,0.000547,11]
[340150534,1728687038412,-11841.4855927,0.00054774,8]
[340150535,1728687038422,-5920.74279637,0.00054784,8]
[340150536,1728687038432,-151.0,0.00054784,120]
[340150537,1728687038442,-151.0,0.00054784,120]
[340150538,1728687038452,-250.0,0.00054794,120]
[340150539,1728687038462,-307.79536,0.00054794,120]
[340150540,1728687038472,-418.28701997,0.00054794,2]
[340150541,1728687038483,-500.0,0.00054794,120]
[340150542,1728687038493,-500.0,0.00054794,120]
[340150543,1728687038504,-500.0,0.00054794,120]
[340150544,1728687038514,-500.0,0.00054794,120]
[340150545,1728687038524,-350.16249255,0.00054794,120]
[340150546,1728687038534,-509.94715144,0.00054794,120]
[340150547,1728687038544,-500.0,0.00054794,7]
[340150548,1728687038554,-557.22639201,0.00054794,120]
[340150549,1728687038564,-525.06,0.00054794,120]
[340150550,1728687038574,-500.0,0.00054794,120]
[340150551,1728687038585,-500.0,0.00054794,120]
[340150552,1728687038594,-500.0,0.00054794,120]
[340150553,1728687038604,-500.00094351,0.00054794,120]
[340150554,1728687038725,-500.0,0.00054794,120]
[340150555,1728687038740,-500.0,0.00054794,120]
[340150556,1728687038752,-510.0,0.00054794,120]
[340150557,1728687038761,-574.67392585,0.00054794,120]
[340150558,1728687038774,-517.735595,0.00054794,120]
[340150559,1728687038785,-500.0,0.00054794,2]
[340150560,1728687038795,-500.0,0.00054794,2]
[340150561,1728687038805,-500.0,0.00054794,2]
[340150562,1728687038815,-463.72,0.00054794,2]
[340150563,1728687038825,-500.94527331,0.00054794,120]
[340150564,1728687038836,-31937.79,0.00054794,18]
[340150565,1728687038847,-500.0,0.00054794,120]
[340150566,1728687038857,-500.0,0.00054794,120]
[340150567,1728687038867,-1250.0,0.00054794,120]
[340150568,1728687038877,-226.25321884,0.00054794,120]
[340150569,1728687038887,-500.0,0.00054794,120]
[340150570,1728687038897,-150.0,0.000548,2]
[340150571,1728687038907,-4955.86306504,0.0005489,28]
[340150572,1728687038917,-712.1496365,0.00054968,2]
[340150573,1728687038927,-17762.2283891,0.00055048,8]
[340150574,1728687038937,-3000.0,0.00055058,120]
[340150575,1728687038947,-3000.0,0.00055058,120]
[340150576,1728687038958,-3000.0,0.00055058,120]
[340150577,1728687038969,-1061.898135,0.00055058,120]
[340150578,1728687038978,-151.0,0.00055058,30]
[340150579,1728687038989,-500.0,0.00055068,120]
[340150580,1728687038998,-31937.79,0.00055068,18]
[340150581,1728687039008,-17762.2283891,0.00055321,8]
[340150582,1728687039018,-17762.2283891,0.00055322,8]
[340150583,1728687039029,-40774.54626689,0.00055331,2]
[340150584,1728687039042,-83532.59143854,0.00055331,2]
[340150585,1728687039053,-13846.37997551,0.00055331,2]
[340150586,1728687039062,-28029.6888574,0.00055331,2]
[340150587,1728687039072,-248649.7374636,0.00055331,2]
[340150588,1728687039081,-151.0,0.00055331,30]
[340150589,1728687039091,-151.0,0.00055331,120]
[340150590,1728687039101,-151.0,0.00055331,120]
[340150591,1728687039111,-151.0,0.00055331,120]
[340150592,1728687039121,-151.0,0.00055331,120]
[340150593,1728687039131,-500.0,0.00055342,120]
[340150594,1728687039141,-151.0,0.00055342,30]
[340150595,1728687039151,-31937.79,0.00055342,18]
[340150596,1728687039162,-500.0,0.00055373,15]
[340150597,1728687039172,-500.0,0.00055373,7]
[340150598,1728687039182,-500.0,0.00055373,15]
[340150599,1728687039192,-500.0,0.00055373,15]
[340150600,1728687039202,-5920.74279637,0.00055606,8]
[340150601,1728687039212,-500.0,0.00055616,120]
[340150602,1728687039227,-31937.79,0.00055616,18]
[340150603,1728687039239,-650.16,0.000557,30]
[340150604,1728687039249,-500.0,0.0005589,120]
[340150605,1728687039259,-31937.79,0.0005589,18]
[340150606,1728687039269,-500.0,0.00055941,15]
[340150607,1728687039278,-151.0,0.00056154,120]
[340150608,1728687039287,-500.0,0.00056164,120]
[340150609,1728687039299,-31937.79,0.00056164,18]
[340150610,1728687039311,-2500.0,0.00056164,120]
[340150611,1728687039322,-163.443487,0.00056199,2]
[340150612,1728687039331,-500.0,0.00056438,120]
[340150613,1728687039343,-31937.79,0.00056438,18]
[340150614,1728687039352,-151.0,0.00056438,120]
[340150615,1728687039363,-329.16,0.0005656,109]
[340150616,1728687039374,-151.0,0.00056629,30]
[340150617,1728687039384,-500.0,0.00056712,120]
[340150618,1728687039393,-31937.79,0.00056712,18]
[340150619,1728687039405,-427.73057118,0.00056742,15]
[340150620,1728687039415,-1000.0,0.00056742,7]
[340150621,1728687039425,-515.71588476,0.00056742,15]
[340150622,1728687039434,-151.0,0.00056986,120]
[340150623,1728687039444,-500.0,0.00056986,120]
[340150624,1728687039454,-31937.79,0.00056986,18]
[340150625,1728687039464,-500.0,0.0005726,120]
[340150626,1728687039474,-31937.79,0.0005726,18]
[340150627,1728687039484,-1000.0,0.00057311,15]
[340150628,1728687039494,-500.0,0.00057534,120]
[340150629,1728687039504,-151.0,0.00057534,30]
[340150630,1728687039515,-31937.79,0.00057534,18]
[340150631,1728687039525,-3750.0,0.00057534,120]
[340150632,1728687039535,-500.0,0.00057808,120]
[340150633,1728687039544,-31937.79,0.00057808,18]
[340150634,1728687039554,-150.112234,0.000579,16]
[340150635,1728687039564,-500.0,0.00058082,120]
[340150636,1728687039574,-31937.79,0.00058082,18]
[340150637,1728687039584,-500.0,0.00058356,120]
[340150638,1728687039594,-31937.79,0.00058356,18]
[340150639,1728687039604,-800.0,0.00058491,120]
[340150640,1728687039614,-4955.86306504,0.00058555,28]
[340150641,1728687039624,-500.0,0.0005863,120]
[340150642,1728687039633,-31937.79,0.0005863,18]
[340150643,1728687039643,-500.0,0.00058746,7]
[340150644,1728687039654,-154.74,0.000588,60]
[340150645,1728687039665,-154.74,0.000588,60]
[340150646,1728687039675,-154.74,0.000588,60]
[340150648,1728687039684,-154.74,0.000588,60]
[340150649,1728687039695,-154.74,0.000588,60]
[340150650,1728687039706,-154.74,0.000588,60]
[340150651,1728687039716,-154.74,0.000588,60]
[340150652,1728687039727,-154.74,0.000588,60]
[340150653,1728687039737,-650.16,0.000589,30]
[340150654,1728687039747,-500.0,0.00058904,120]
[340150655,1728687039757,-151.0,0.00058904,30]
[340150656,1728687039766,-31937.79,0.00058904,18]
[340150657,1728687039777,-150.0,0.00059161,120]
[340150658,1728687039787,-1219.0,0.00059161,120]
[340150659,1728687039797,-500.0,0.00059178,120]
[340150660,1728687039807,-31937.79,0.00059178,18]
[340150661,1728687039817,-261.073036,0.00059236,2]
[340150662,1728687039827,-1500.0,0.00059314,15]
[340150663,1728687039837,-500.0,0.00059452,120]
[340150665,1728687039847,-31937.79,0.00059452,18]
[340150666,1728687039857,-500.0,0.00059726,120]
[340150667,1728687039868,-31937.79,0.00059726,18]
[340150668,1728687039878,-42506.0911906,0.00059999,84]
[340150669,1728687039920,-649.66921768,0.00059999,84]
[340150670,1728687039930,-291.66000002,0.00059999,120]
[340150671,1728687039941,-206.02872,0.00059999,30]
[340150672,1728687039951,-1954.4243593,0.00059999,18]
[340150673,1728687039963,-634.62673564,0.00059999,18]
[340150674,1728687042182,-372.69311179,0.00059999,18]
[340150675,1728687042197,-656.54825847,0.00059999,18]
[340150676,1728687042213,-28319.4975348,0.00059999,18]
[340150677,1728687042224,-171.75,0.0006,120]
[340150678,1728687042235,-31937.79,0.00060273,18]
[340150679,1728687042246,-31937.79,0.00060547,18]